Cogmind - Beta 11.1 @@@ ROGUE MODE // 2022.05.06 @ 21:46:59 Player: Smie Result: Destroyed by S-43 Plague with Heavy Machine Gun Performance ------------- Evolutions (7) 3500 Regions Visited (13) 2600 Robots Destroyed (29) 145 Value Destroyed (984) 984 Prototype IDs (3) 60 Alien Tech Used (0) 0 Bonus (0) 0 TOTAL SCORE: 7289 Bonus ------- None Cogmind --------- Core Integrity 0/1300 Matter 143/300 Energy 99/100 System Corruption 0% Temperature Cool (0) Movement Core (50) Location -3/Research Parts ------- > --- POWER (3) -------- (None) > --- PROPULSION (4) --- (None) > --- UTILITY (10) ----- Faulty Experimental Melee Analysis Suite Improved Component Analysis Suite > --- WEAPON (4) ------- (None) > --- INVENTORY (5) ---- (None) Peak State ------------ > --- POWER ------------ Light Ion Engine Micro Nuclear Core > --- PROPULSION ------- Xenon Bombardment Thruster Nuclear Pulse Thruster Nuclear Pulse Thruster Cooled Cesium-ion Thruster > --- UTILITY ---------- Advanced Power Amplifier Advanced Weight Redist. System Advanced Visual Processing Unit Enhanced Optical Array Improved Terrain Scan Processor Reaction Control System Shield Generator Hacking Suite Advanced Hacking Suite > --- WEAPON ----------- Gatling Laser Proton Cannon Heavy Flak Cannon > --- INVENTORY -------- Xenon Bombardment Thruster Xenon Bombardment Thruster Xenon Bombardment Thruster Xenon Bombardment Thruster Reaction Control System [Rating: 75] Favorites ----------- Power Micro Nuclear Core Engine Improved Ion Engine Power Core Micro Nuclear Core Reactor Light Antimatter Reactor Propulsion Aluminum Leg Leg Aluminum Leg Wheel Armored Huge Wheel Hover Unit Gravmag System Flight Unit Xenon Bombardment Thruster Utility Hacking Suite Device Reaction Control System Storage Small Storage Unit Processor Advanced Visual Processing Unit Hackware Hacking Suite Protection Light Armor Plating Weapon Axe Energy Gun Gatling Laser Energy Cannon Proton Cannon Ballistic Gun Light Assault Rifle Ballistic Cannon Heavy Flak Cannon Launcher Rocket Launcher Impact Weapon Great Maul Slashing Weapon Axe Build | -11 -10 -10 -9 -8 -7 -6 -5 -4 -4 -4 -4 -4 -3 ------- Run | Scr Mat Min Mat Mat Fac Fac Fac Fac Ext Cet Arc Hub Res Slots Evolved 14 | . . . 2 2 2 2 2 2 . . . . 2 Power 2 | . . . . 1 . . . 1 . . . . . Propulsion 2 | . . . 1 . 1 . . . . . . . . Utility 8 | . . . 1 1 . 2 2 1 . . . . 1 Weapon 2 | . . . . . 1 . . . . . . . 1 Parts Attached 108 | 6 7 . 6 24 18 6 5 1 8 2 1 12 12 Power 9 | 1 1 . . 2 1 1 . . 1 . . 2 . Engine 4 | 1 1 . . 1 . 1 . . . . . . . Core 4 | . . . . 1 1 . . . 1 . . 1 . Reactor 1 | . . . . . . . . . . . . 1 . Propulsion 41 | 2 3 . 3 5 10 2 1 . 2 2 . 5 6 Treads . | . . . . . . . . . . . . . . Leg 14 | 2 1 . . 4 3 . . . . . . 1 3 Wheel 9 | . . . 2 1 2 . . . . . . 4 . Hover 2 | . . . . . 1 . . . . . . . 1 Flight 16 | . 2 . 1 . 4 2 1 . 2 2 . . 2 Utility 33 | 1 2 . 1 4 4 2 3 1 4 . 1 4 6 Device 22 | . 1 . . 2 2 1 2 1 4 . 1 3 5 Storage 2 | 1 . . . . . . . . . . . 1 . Processor 5 | . . . . 1 2 1 . . . . . . 1 Hackware 2 | . . . . 1 . . 1 . . . . . . Protection 2 | . 1 . 1 . . . . . . . . . . Artifact . | . . . . . . . . . . . . . . Weapon 25 | 2 1 . 2 13 3 1 1 . 1 . . 1 . Energy Gun 7 | . . . . 4 2 . . . 1 . . . . Energy Cannon 3 | . . . 1 . . 1 . . . . . 1 . Ballistic Gun 6 | 2 1 . . 3 . . . . . . . . . Ballistic Cannon 1 | . . . . . . . 1 . . . . . . Launcher 3 | . . . 1 2 . . . . . . . . . Special Weapon . | . . . . . . . . . . . . . . Impact Weapon 1 | . . . . . 1 . . . . . . . . Slashing Weapon 4 | . . . . 4 . . . . . . . . . Piercing Weapon . | . . . . . . . . . . . . . . Special Melee Weapon . | . . . . . . . . . . . . . . Unidentified Prototypes 3 | . . . . . . . 1 . . . . . 2 Parts Lost 61 | . 3 . 4 7 3 . . . 12 11 1 10 10 Power 7 | . 1 . 1 . 1 . . . 2 . . 2 . Propulsion 24 | . 1 . 2 3 2 . . . 2 6 . 2 6 Utility 22 | . 1 . . 1 . . . . 6 4 1 5 4 Weapon 8 | . . . 1 3 . . . . 2 1 . 1 . Highest Loss Streak 12 | . 3 . 4 3 1 . . . 12 7 8 6 8 To Critical Strikes 4 | . . . . . . . . . . 2 . . 2 Average Slot Usage (%) 74 | . 85 85 61 61 92 90 99 89 67 46 10 22 8 Engine 5 | . 9 14 9 3 6 5 5 5 2 . . . . Core 4 | . . . . 2 7 6 5 5 3 4 . 1 . Leg 8 | . 23 . . 11 14 . . . . . . 3 . Wheel 3 | . . . 9 4 5 . . . . . . 3 . Flight 8 | . 2 28 20 1 2 26 23 21 17 13 . . . Device 8 | . 2 14 11 9 4 13 19 15 14 14 6 7 4 Processor 10 | . . . . 5 18 18 17 15 11 5 3 . . Hackware 5 | . . . . 9 7 6 8 10 10 4 . . . Energy Gun 4 | . . . . 6 7 6 5 4 . 5 . . . Energy Cannon 1 | . . . 7 . . 5 5 5 2 . . . . Ballistic Gun 2 | . 28 28 2 4 . . . . . . . . . Slashing Weapon 5 | . . . . 3 13 . . . . . . . . Naked Turns 93 | . . . . . . . . . . . . 11 82 Heaviest Build 33 | 13 16 7 8 20 24 24 33 32 31 17 2 32 6 Greatest Support 56 | 20 20 8 8 30 56 24 33 33 33 24 3 32 50 Greatest Overweight (x) 3 | 1 . . . 2 3 . . . . . . 1 . Average Overweight (x) . | . . . . . . . . . . . . . . Largest Inventory Capacity 8 | 8 8 5 5 5 5 5 5 5 5 5 5 5 5 Average Capacity 5 | 7 7 5 5 5 5 5 5 5 5 5 5 5 5 Most Carried 8 | 6 8 5 5 5 5 5 5 5 5 2 2 4 1 Average Carried 4 | 3 7 4 4 4 4 4 4 5 4 1 1 1 . Final Capacity 8 | 8 5 5 5 5 5 5 5 5 5 5 5 5 5 Final Carried 6 | 6 5 5 4 5 5 5 5 5 2 2 1 . . Class Distribution -------------------- 55% | Mutant 18% | Scavenger-Mutant 13% | Sprinter 12% | Hacker-Sprinter Dominant Class ---------------- Mutant | -10/Materials Scavenger-Mutant | -10/Mines Mutant | -9/Materials Mutant | -8/Materials Mutant | -7/Factory Sprinter | -6/Factory Hacker-Sprinter | -5/Factory Hacker-Sprinter | -4/Factory Hacker-Sprinter | -4/Extension Sprinter | -4/Cetus Mutant | -4/Archives Mutant | -4/Hub_04(d) Mutant | -3/Research Resources | -11 -10 -10 -9 -8 -7 -6 -5 -4 -4 -4 -4 -4 -3 ----------- Run | Scr Mat Min Mat Mat Fac Fac Fac Fac Ext Cet Arc Hub Res Matter Collected 1033 | 260 159 . . 326 110 . 165 . 1 . . 12 . Remotely . | . . . . . . . . . . . . . . Salvage Created 1136 | . 220 . 113 401 317 . . 56 29 . . . . Parts 52 | . 8 . 5 20 15 . . 3 1 . . . . Haulers Intercepted 1 | . . . . . 1 . . . . . . . . Recyclers Shooed 2 | . 1 . 1 . . . . . . . . . . Parts Field Recycled . | . . . . . . . . . . . . . . Retrieved Matter . | . . . . . . . . . . . . . . Parts Self-Destructed . | . . . . . . . . . . . . . . Prevented . | . . . . . . . . . . . . . . Kills | -11 -10 -10 -9 -8 -7 -6 -5 -4 -4 -4 -4 -4 -3 ------- Run | Scr Mat Min Mat Mat Fac Fac Fac Fac Ext Cet Arc Hub Res Combat Hostiles Destroyed 25 | . 5 . 3 11 4 . . 1 1 . . . . Melee 11 | . . . . 8 3 . . . . . . . . Guns 8 | . 5 . . 1 1 . . 1 . . . . . Cannons 2 | . . . 1 . . . . . 1 . . . . AOE 4 | . . . 2 2 . . . . . . . . . Classes Destroyed 8 | . 3 . 1 1 3 . . . . . . . . Worker 1 | . . . . . 1 . . . . . . . . Builder 1 | . . . . . 1 . . . . . . . . Hauler 1 | . . . . . 1 . . . . . . . . Recycler 1 | . 1 . . . . . . . . . . . . Swarmer 6 | . 3 . . 2 . . . . 1 . . . . Grunt 11 | . 2 . 2 5 2 . . . . . . . . Brawler 1 | . . . 1 . . . . . . . . . . Sentry 7 | . . . . 4 2 . . 1 . . . . . Best Kill Streak 4 | . 4 . 3 4 2 . . 1 1 . . . . Combat Bots Only 4 | . 3 . 3 4 2 . . 1 1 . . . . Max Kills in Single Turn 2 | . 1 . 2 1 1 . . 1 1 . . . . Gunslinging . | . . . . . . . . . . . . . . Exploded 2 | . . . 2 1 . . . . . . . . . Melee 1 | . . . . 1 1 . . . . . . . . Uniques/NPCs Destroyed . | . . . . . . . . . . . . . . Combat | -11 -10 -10 -9 -8 -7 -6 -5 -4 -4 -4 -4 -4 -3 -------- Run | Scr Mat Min Mat Mat Fac Fac Fac Fac Ext Cet Arc Hub Res Damage Taken 7397 | . 572 . 248 976 437 60 113 . 783 635 172 1222 2179 Core 2894 | . 91 . 69 418 99 27 14 . 193 131 143 407 1302 Absorbed by Shields 117 | . . . . . . 25 44 . 48 . . . . Core Remaining (%) 71 | 100 . 63 82 24 85 96 98 . . . . 24 . Volleys Fired 56 | . 26 . 6 9 8 . . 2 2 2 . 1 . Largest 3 | . 2 . 2 1 1 . . 3 2 1 . 1 . Hottest 208 | . 40 . 89 45 80 . . 208 128 88 . 110 . Shots Fired 90 | . 52 . 8 9 8 . . 6 4 2 . 1 . Gun 67 | . 52 . . 3 8 . . 2 . 2 . . . Cannon 15 | . . . 6 . . . . 4 4 . . 1 . Launcher 8 | . . . 2 6 . . . . . . . . . Special . | . . . . . . . . . . . . . . Kinetic 56 | . 52 . . . . . . 2 2 . . . . Thermal 12 | . . . . . 8 . . 2 . 2 . . . Explosive 8 | . . . 2 6 . . . . . . . . . Electromagnetic 14 | . . . 6 3 . . . 2 2 . . 1 . Robot Hit Streak 21 | . 7 . 5 11 5 . . 21 1 . . 2 . Robot Miss Streak 7 | . 7 . 1 3 1 . . . 5 . . . . Penetration Max . | . . . . . . . . . . . . . . Secondary Targets . | . . . . . . . . . . . . . . Shots Hit Robots 96 | . 26 . 7 30 24 . . 6 2 . . 1 . Core Hits 58 | . 10 . 7 20 11 . . 6 4 . . . . Critical Kills . | . . . . . . . . . . . . . . Critical Parts Destroyed . | . . . . . . . . . . . . . . Critical Strikes 3 | . . . . 2 1 . . . . . . . . Sever 3 | . . . . 2 1 . . . . . . . . Melee Attacks 54 | . . . . 29 25 . . . . . . . . Impact . | . . . . . . . . . . . . . . Slashing 54 | . . . . 29 25 . . . . . . . . Piercing . | . . . . . . . . . . . . . . Sneak Attacks 1 | . . . . . 1 . . . . . . . . Combat Hostiles . | . . . . . . . . . . . . . . Follow-up Attacks 3 | . . . . 1 2 . . . . . . . . Damage Inflicted 2636 | . 319 . 330 900 806 . . 200 79 . . . 2 Guns 498 | . 319 . . 16 107 . . 56 . . . . . Cannons 355 | . . . 132 . . . . 144 79 . . . . Explosions 384 | . . . 198 186 . . . . . . . . . Melee 1389 | . . . . 690 699 . . . . . . . . Ramming 10 | . . . . 8 . . . . . . . . 2 Kinetic 459 | . 319 . . . . . . 89 51 . . . . Thermal 217 | . . . 54 . 107 . . 56 . . . . . Explosive 312 | . . . 126 186 . . . . . . . . . Electromagnetic 249 | . . . 150 16 . . . 55 28 . . . . Impact . | . . . . . . . . . . . . . . Slashing 1389 | . . . . 690 699 . . . . . . . . Piercing . | . . . . . . . . . . . . . . Highest Corruption 2 | . . . . 1 . . 2 . . . . . . Average Corruption 1 | . . . . 1 . . 1 . . . . . . Corruption Purged . | . . . . . . . . . . . . . . Corruption Blocked . | . . . . . . . . . . . . . . Effects 3 | . . . . 2 . . 1 . . . . . . Message Errors 1 | . . . . 1 . . . . . . . . . Energy Discharges 1 | . . . . 1 . . . . . . . . . Data Loss (major) 1 | . . . . . . . 1 . . . . . . Overload Shots . | . . . . . . . . . . . . . . Overflow Damage 42 | . . . 5 4 33 . . . . . . . . Projectiles . | . . . . . . . . . . . . . . Explosions 5 | . . . 5 . . . . . . . . . . Melee 37 | . . . . 4 33 . . . . . . . . Knockbacks . | . . . . . . . . . . . . . . Impact . | . . . . . . . . . . . . . . Kinetic . | . . . . . . . . . . . . . . Secondary . | . . . . . . . . . . . . . . Self-Inflicted Damage 102 | . . . 100 2 . . . . . . . . . Shots 3 | . . . 3 . . . . . . . . . . Rammed 1 | . . . . 1 . . . . . . . . . Targets Rammed 6 | . . . . 3 . . . . . . . . 3 Kicked 5 | . . . . 2 . . . . . . . . 3 Crushed . | . . . . . . . . . . . . . . Highest Temperature 264 | . 25 . 63 12 38 3 . 264 106 32 . 42 . Average Temperature 32 | . 8 . 30 12 12 1 . 141 52 17 . 23 . Received Heat Transfer 1191 | . 144 . 48 450 231 24 6 . 72 108 18 90 . Siege Activations . | . . . . . . . . . . . . . . Robots Corrupted . | . . . . . . . . . . . . . . Combat Hostiles . | . . . . . . . . . . . . . . Parts Fried . | . . . . . . . . . . . . . . Impact Corruptions . | . . . . . . . . . . . . . . Robots Melted . | . . . . . . . . . . . . . . Combat Hostiles . | . . . . . . . . . . . . . . Parts Melted 1 | . . . . . 1 . . . . . . . . Heat Transferred 425 | . . . 50 . 250 . . 125 . . . . . Parts Sabotaged . | . . . . . . . . . . . . . . Parts Stolen . | . . . . . . . . . . . . . . Parts Stripped . | . . . . . . . . . . . . . . Power Chain Reactions 1 | . . . 1 . . . . . . . . . . Missiles Intercepted . | . . . . . . . . . . . . . . Alert | -11 -10 -10 -9 -8 -7 -6 -5 -4 -4 -4 -4 -4 -3 ------- Run | Scr Mat Min Mat Mat Fac Fac Fac Fac Ext Cet Arc Hub Res Peak Influence 380 | . 128 49 242 380 140 91 165 200 208 131 83 70 29 Initial 140 | . . 49 18 94 140 46 44 80 98 116 23 25 15 Average 87 | . 72 49 99 233 30 51 89 143 163 99 50 53 17 Maximum Alert Level 1 | . . . 1 1 . . . 1 1 . . . . Low Security (%) 85 | 100 100 100 77 25 100 100 100 95 73 100 100 100 100 Level 1 14 | . . . 22 74 . . . 4 26 . . . . Level 2 . | . . . . . . . . . . . . . . Level 3 . | . . . . . . . . . . . . . . Level 4 . | . . . . . . . . . . . . . . Level 5 . | . . . . . . . . . . . . . . High Security . | . . . . . . . . . . . . . . Max Security . | . . . . . . . . . . . . . . Squads Dispatched 20 | . 1 . . 3 5 . 4 . . 1 . 3 3 Investigation 7 | . . . . . 2 . 2 . . 1 . . 2 Extermination 2 | . . . . . 1 . 1 . . . . . . Reinforcement 11 | . 1 . . 3 2 . 1 . . . . 3 1 Assault . | . . . . . . . . . . . . . . Garrison . | . . . . . . . . . . . . . . Intercept . | . . . . . . . . . . . . . . Searches Triggered . | . . . . . . . . . . . . . . Construction Impeded . | . . . . . . . . . . . . . . Haulers Reinforced . | . . . . . . . . . . . . . . Active Scanning Responses . | . . . . . . . . . . . . . . Cargo Convoy Interrupts . | . . . . . . . . . . . . . . Stealth | -11 -10 -10 -9 -8 -7 -6 -5 -4 -4 -4 -4 -4 -3 --------- Run | Scr Mat Min Mat Mat Fac Fac Fac Fac Ext Cet Arc Hub Res Distress Signals 14 | . 2 . 3 1 3 . . . 2 1 . 2 . Communications Jammed . | . . . . . . . . . . . . . . Distress Signals . | . . . . . . . . . . . . . . Times Spotted 135 | . 7 . 12 22 22 9 6 3 19 8 4 15 8 Peak Tracking Total 12 | . 7 . 7 6 10 8 4 2 12 8 4 11 7 Tactical Retreats 17 | . . . 2 4 2 1 2 . 3 . . 2 1 Traps | -11 -10 -10 -9 -8 -7 -6 -5 -4 -4 -4 -4 -4 -3 ------- Run | Scr Mat Min Mat Mat Fac Fac Fac Fac Ext Cet Arc Hub Res Traps Triggered 5 | . . . . 1 . . 3 . . . . 1 . Indirectly . | . . . . . . . . . . . . . . Trap Hack Attempts . | . . . . . . . . . . . . . . Triggered . | . . . . . . . . . . . . . . Disarmed . | . . . . . . . . . . . . . . Reprogrammed . | . . . . . . . . . . . . . . Reused . | . . . . . . . . . . . . . . Traps Extracted . | . . . . . . . . . . . . . . Installed . | . . . . . . . . . . . . . . Triggered . | . . . . . . . . . . . . . . Machines | -11 -10 -10 -9 -8 -7 -6 -5 -4 -4 -4 -4 -4 -3 ---------- Run | Scr Mat Min Mat Mat Fac Fac Fac Fac Ext Cet Arc Hub Res Machines Disabled 4 | . . . 3 . . . . . . 1 . . . Max in Single Turn 2 | . . . 2 . . . . . . 1 . . . Garrison Access 2 | . . . . . 1 . . 1 . . . . . Machines Sabotaged . | . . . . . . . . . . . . . . Garrisons Compromised . | . . . . . . . . . . . . . . Overloaded Fab Kills . | . . . . . . . . . . . . . . Hacking | -11 -10 -10 -9 -8 -7 -6 -5 -4 -4 -4 -4 -4 -3 --------- Run | Scr Mat Min Mat Mat Fac Fac Fac Fac Ext Cet Arc Hub Res Machines Accessed 30 | . . . 3 2 6 . 6 4 2 1 . 3 3 Terminals 21 | . . . 2 2 3 . 4 2 2 1 . 3 2 Fabricators 2 | . . . . . 1 . . . . . . . 1 Repair Stations 1 | . . . . . 1 . . . . . . . . Recycling Units 2 | . . . . . . . 1 1 . . . . . Scanalyzers 2 | . . . 1 . . . 1 . . . . . . Garrison Access 2 | . . . . . 1 . . 1 . . . . . Total Hacks 55 | . . . 5 6 10 . 12 5 3 2 . 5 7 Successful 25 | . . . 3 . 6 . 5 4 2 1 . 1 3 Failed 30 | . . . 2 6 4 . 7 1 1 1 . 4 4 Catastrophic 7 | . . . . 1 2 . 1 . . 1 . 1 1 Database Lockouts . | . . . . . . . . . . . . . . Manual 20 | . . . 2 6 3 . 3 . 3 . . 2 1 Terminals 33 | . . . 3 6 4 . 5 2 3 2 . 5 3 Fabricators 6 | . . . . . 2 . . . . . . . 4 Repair Stations 3 | . . . . . 3 . . . . . . . . Recycling Units 5 | . . . . . . . 4 1 . . . . . Scanalyzers 5 | . . . 2 . . . 3 . . . . . . Garrison Access 3 | . . . . . 1 . . 2 . . . . . Terminal Hacks 10 | . . . 1 . 2 . 1 2 1 1 . 1 1 Record 1 | . . . . . . . . . . . . 1 . Open Door 2 | . . . . . . . . 1 . 1 . . . Open DSF 1 | . . . . . . . . . . . . . 1 Level Access Points 1 | . . . . . . . . . 1 . . . . Alert Level 1 | . . . . . 1 . . . . . . . . Unreport Threat 1 | . . . . . 1 . . . . . . . . Security Status 1 | . . . 1 . . . . . . . . . . Patrol Status 1 | . . . . . . . 1 . . . . . . Registered Components 1 | . . . . . . . . 1 . . . . . Fabricator Hacks 4 | . . . . . 2 . . . . . . . 2 Load Schematic 2 | . . . . . 1 . . . . . . . 1 Build 2 | . . . . . 1 . . . . . . . 1 Repair Station Hacks 1 | . . . . . 1 . . . . . . . . Scan Component 1 | . . . . . 1 . . . . . . . . Recycling Unit Hacks 2 | . . . . . . . 1 1 . . . . . Report Inventory 1 | . . . . . . . 1 . . . . . . Retrieve Components 1 | . . . . . . . . 1 . . . . . Scanalyzer 4 | . . . 2 . . . 2 . . . . . . Insert Component 2 | . . . 1 . . . 1 . . . . . . Analyze 2 | . . . 1 . . . 1 . . . . . . Garrison Access Hacks 2 | . . . . . 1 . . 1 . . . . . Seal Access 2 | . . . . . 1 . . 1 . . . . . Unauthorized Hacks 2 | . . . . . . . 1 . 1 . . . . Terminals 2 | . . . . . . . 1 . 1 . . . . Track 1 | . . . . . . . 1 . . . . . . Assimilate 1 | . . . . . . . . . 1 . . . . Fabricators . | . . . . . . . . . . . . . . Repair Stations . | . . . . . . . . . . . . . . Recycling Units . | . . . . . . . . . . . . . . Scanalyzers . | . . . . . . . . . . . . . . Garrison Access . | . . . . . . . . . . . . . . Data Cores Recovered . | . . . . . . . . . . . . . . Used . | . . . . . . . . . . . . . . Hacking Detections 26 | . . . 3 2 5 . 6 2 1 1 . 3 3 Full Trace Events 7 | . . . . . 2 . 2 . . 1 . . 2 Feedback Events 1 | . . . . . . . 1 . . . . . . Corruption 1 | . . . . . . . 1 . . . . . . Feedback Blocked . | . . . . . . . . . . . . . . Robot Schematics Acquired . | . . . . . . . . . . . . . . Robots Built . | . . . . . . . . . . . . . . Authchips . | . . . . . . . . . . . . . . Time . | . . . . . . . . . . . . . . Total Robot Build Rating . | . . . . . . . . . . . . . . Part Schematics Acquired 2 | . . . 1 . . . 1 . . . . . . Parts Built 4 | . . . . . 2 . . . . . . . 2 Authchips . | . . . . . . . . . . . . . . Time 93 | . . . . . 51 . . . . . . . 42 Total Part Build Rating 10 | . . . . . 2 . . . . . . . 8 Parts Repaired . | . . . . . . . . . . . . . . Time . | . . . . . . . . . . . . . . Parts Recycled . | . . . . . . . . . . . . . . Recycled Matter . | . . . . . . . . . . . . . . Retrieved Matter . | . . . . . . . . . . . . . . Retrieved Components 1 | . . . . . . . . 1 . . . . . Parts Scanalyzed 2 | . . . 1 . . . 1 . . . . . . Part Schematics Acquired 2 | . . . 1 . . . 1 . . . . . . Parts Damaged . | . . . . . . . . . . . . . . Bothacking | -11 -10 -10 -9 -8 -7 -6 -5 -4 -4 -4 -4 -4 -3 ------------ Run | Scr Mat Min Mat Mat Fac Fac Fac Fac Ext Cet Arc Hub Res Used RIF Installer . | . . . . . . . . . . . . . . Robots Hacked . | . . . . . . . . . . . . . . Non-combat . | . . . . . . . . . . . . . . Combat . | . . . . . . . . . . . . . . Robot Hacks Applied . | . . . . . . . . . . . . . . Relay Couplers Released . | . . . . . . . . . . . . . . Fabnet Peak Effective % . | . . . . . . . . . . . . . . Robots Rewired . | . . . . . . . . . . . . . . Allies Hacked . | . . . . . . . . . . . . . . Hacks Repelled . | . . . . . . . . . . . . . . Allies | -11 -10 -10 -9 -8 -7 -6 -5 -4 -4 -4 -4 -4 -3 -------- Run | Scr Mat Min Mat Mat Fac Fac Fac Fac Ext Cet Arc Hub Res Total Allies 1 | . . . . . . . . . 1 . . . . Largest Group 1 | . . . . . . . . . 1 . . . . Highest-Rated Group 26 | . . . . . . . . . 26 . . . . Highest-Rated Ally 26 | . . . . . . . . . 26 . . . . Total Orders 1 | . . . . . . . . . 1 . . . . ROAM 1 | . . . . . . . . . 1 . . . . Ally Attacks . | . . . . . . . . . . . . . . Total Damage . | . . . . . . . . . . . . . . Kills . | . . . . . . . . . . . . . . Allies Corrupted . | . . . . . . . . . . . . . . Allies Melted . | . . . . . . . . . . . . . . Intel | -11 -10 -10 -9 -8 -7 -6 -5 -4 -4 -4 -4 -4 -3 ------- Run | Scr Mat Min Mat Mat Fac Fac Fac Fac Ext Cet Arc Hub Res Robot Analysis Total . | . . . . . . . . . . . . . . Derelict Logs Recovered . | . . . . . . . . . . . . . . Drone Launches . | . . . . . . . . . . . . . . Drone Recoveries . | . . . . . . . . . . . . . . Exploration | -11 -10 -10 -9 -8 -7 -6 -5 -4 -4 -4 -4 -4 -3 ------------- Run | Scr Mat Min Mat Mat Fac Fac Fac Fac Ext Cet Arc Hub Res Turns Passed 3887 | 70 213 52 295 621 1282 247 354 154 114 55 23 239 168 Spaces Moved 5330 | 48 112 127 336 502 1149 758 983 380 307 145 44 269 170 Core 421 | 8 . . 20 80 . . . . 14 7 44 128 120 Treads . | . . . . . . . . . . . . . . Legs 550 | 40 96 . . 154 164 . . . . . . 85 11 Wheels 919 | . . . . 126 737 . . . . . . 56 . Hover 37 | . . . . . . . . . . . . . 37 Flight 3403 | . 16 127 316 142 248 758 983 380 293 138 . . 2 Fastest Speed 29 | 50 37 37 37 45 31 31 29 29 29 29 50 50 40 Average Speed 54 | 115 108 37 41 82 88 31 29 29 31 33 50 80 54 Slowest Speed 280 | 120 120 37 50 150 280 31 31 29 50 50 50 120 120 Overloaded Moves . | . . . . . . . . . . . . . . Propulsion Burnouts . | . . . . . . . . . . . . . . Robots Hopped 32 | . . . . . 6 3 5 1 16 1 . . . Cave-ins Triggered . | . . . . . . . . . . . . . . Exploration Rate (%) 31 | 4 31 39 25 31 29 15 25 12 58 71 69 27 11 Regions Visited 13 Branch Regions 5 Pre-discovered Areas . | . . . . . . . . . . . . . . Known Exits Taken 1 | . . . . . . . . . . . . 1 . Unknown Exits Taken 12 | 1 1 1 1 1 1 1 1 1 1 1 1 . . Scrap Searched . | . . . . . . . . . . . . . . Spaces Dug . | . . . . . . . . . . . . . . Terrain Destroyed 44 | . . . 15 29 . . . . . . . . . Melee . | . . . . . . . . . . . . . . Projectile . | . . . . . . . . . . . . . . AOE 44 | . . . 15 29 . . . . . . . . . Terrain Rammed . | . . . . . . . . . . . . . . Walls Destroyed . | . . . . . . . . . . . . . . Machines Disabled . | . . . . . . . . . . . . . . Actions | -11 -10 -10 -9 -8 -7 -6 -5 -4 -4 -4 -4 -4 -3 --------- Run | Scr Mat Min Mat Mat Fac Fac Fac Fac Ext Cet Arc Hub Res Total 6077 | 59 156 131 483 643 1365 766 1039 417 301 149 44 285 239 Wait 464 | . 3 3 131 64 150 . 23 35 1 . . 1 53 Move 5256 | 47 111 126 335 501 1137 751 972 377 276 142 43 268 170 Hop 29 | . . . . . 5 3 5 1 14 1 . . . Pick Up 32 | 6 2 1 . 5 9 3 2 . . . . 3 1 Fast Attach 71 | 6 6 . 2 15 11 2 4 1 5 . . 8 11 Attach 27 | . . . 4 3 6 2 1 . 3 2 1 4 1 Detach 9 | . . . 3 3 1 . . . . 2 . . . Swap 10 | . 1 . . 6 1 2 . . . . . . . Drop 39 | . 7 1 2 6 16 3 3 1 . . . . . Fire 56 | . 26 . 6 9 8 . . 2 2 2 . 1 . Melee 49 | . . . . 28 21 . . . . . . . . Ram 1 | . . . . 1 . . . . . . . . . Kick 5 | . . . . 2 . . . . . . . . 3 Crush . | . . . . . . . . . . . . . . Escape Stasis 29 | . . . . . . . 29 . . . . . . Rewire . | . . . . . . . . . . . . . . Trap . | . . . . . . . . . . . . . . Miscellaneous . | . . . . . . . . . . . . . . Route ------- -11/Scrapyard -10/Materials -10/Mines -9/Materials -8/Materials -7/Factory -6/Factory -5/Factory -4/Factory -4/Extension (discovered 3 exits: *Res x2 / *Cet) -4/Cetus -4/Archives -4/Hub_04(d) -3/Research History --------- Turn | Location | Event 10 | -11/Scrapyard | Discovered new exit (range 16) 71 | -11/Scrapyard | Entered Materials 142 | -10/Materials | Discovered new exit (range 16) 236 | -10/Materials | Lost 3 parts (1p1n1u) 284 | -10/Materials | Entered Mines 292 | -10/Mines | Assembled infested the area 312 | -10/Mines | Received a Rocket Launcher from a helpful Derelict 333 | -10/Mines | Discovered new exit (range 8) 336 | -10/Mines | Entered Materials 336 | -9/Materials | Evolved 2 slots: Propulsion x1, Utility x1 622 | -9/Materials | Discovered new exit (range 16) 631 | -9/Materials | Entered another Materials area 631 | -8/Materials | Evolved 2 slots: Power x1, Utility x1 639 | -8/Materials | Lost 4 parts (1p2n1w) 667 | -8/Materials | Build established: Mutant 971 | -8/Materials | Core integrity fell below 50% 995 | -8/Materials | Lost 3 parts (1u2w) 1243 | -8/Materials | Discovered new exit (range 9) 1252 | -8/Materials | Entered Factory 1252 | -7/Factory | Evolved 2 slots: Propulsion x1, Weapon x1 1293 | -7/Factory | Build established: Scavenger-Mutant 1859 | -7/Factory | Build established: Mutant 2413 | -7/Factory | Fabricated Flight Unit? 2530 | -7/Factory | Discovered new exit (range 14) 2534 | -7/Factory | Entered another Factory area 2534 | -6/Factory | Evolved 2 slots: Utility x2 2743 | -6/Factory | Build established: Sprinter 2778 | -6/Factory | Discovered new exit (range 9) 2781 | -6/Factory | Entered another Factory area 2781 | -5/Factory | Evolved 2 slots: Utility x2 3127 | -5/Factory | Discovered new exit (range 22) 3135 | -5/Factory | Entered another Factory area 3135 | -4/Factory | Evolved 2 slots: Power x1, Utility x1 3181 | -4/Factory | Build established: Hacker-Sprinter 3288 | -4/Factory | Discovered new exit (range 6) 3289 | -4/Factory | Entered Extension 3343 | -4/Extension | Spotted B-86 Titan 3346 | -4/Extension | Identified exit to Research 3348 | -4/Extension | Spotted B-86 Titan 3384 | -4/Extension | Discovered new exit (range 19) 3393 | -4/Extension | Lost 12 parts (2p2n6u2w) 3403 | -4/Extension | Entered Cetus 3407 | -4/Cetus | Spotted Cetus Guard 3407 | -4/Cetus | Spotted Cetus Guard 3407 | -4/Cetus | Spotted Cetus Guard 3407 | -4/Cetus | Spotted Cetus Guard 3415 | -4/Cetus | Cetus Manufacturing Module disabled 3442 | -4/Cetus | Lost 4 parts (2n2u) 3450 | -4/Cetus | Discovered new exit (range 20) 3458 | -4/Cetus | Entered Archives 3470 | -4/Archives | Discovered new exit (range 20) 3472 | -4/Archives | Unable to access archive contents 3481 | -4/Archives | Entered Hub_04(d) 3503 | -4/Hub_04(d) | Lost 8 parts (4n3u1w) 3599 | -4/Hub_04(d) | Core integrity fell below 50% 3627 | -4/Hub_04(d) | Lost 3 parts (2u1w) 3713 | -4/Hub_04(d) | Discovered exit to Research (range 16) 3720 | -4/Hub_04(d) | Entered Research 3720 | -3/Research | Evolved 2 slots: Utility x1, Weapon x1 3740 | -3/Research | Lost 6 parts (1p2n3u) 3745 | -3/Research | Build established: Mutant 3779 | -3/Research | Fabricated Xenon Bombardment Thruster (x2) 3834 | -3/Research | Core integrity fell below 50% 3853 | -3/Research | Found Prototype Processor 3853 | -3/Research | Identified Exp. Melee Analysis Suite 3859 | -3/Research | Core integrity fell below 20% 3888 | -3/Research | Destroyed by S-43 Plague with Heavy Machine Gun Last Messages --------------- 03844_ Myomer Leg destroyed. 03847_ Acquired Myomer Leg. 03848_ Critical hit (Destroy). 03848_ Cld. Antigrav System destroyed. 03848_ R-10 Processor collects Xenon Bombardment Thruster. 03849_ Adv. Recalibrator destroyed. 03853_ Acquired Prototype Processor. 03853_ Identified Exp. Melee Analysis Suite. 03853_ Malfunction: Adv. Recalibrator damaged (-11). 03854_ Penetrated by Slug. 03855_ Slug penetrates R-10 Processor. 03855_ Penetrated by Slug. 03855_ Slug penetrates Wall. 03856_ Acquired Adv. Recalibrator. 03856_ Myomer Leg destroyed. 03857_ Adv. Recalibrator destroyed. 03866_ Connecting with DSF Access... 03871_ Connecting with Terminal... 03871_ ALERT: Suspicious activity at Terminal R004. Dispatching Investigation squad. Map ----- +----------------------------------------------------+ | ?????????????????????????????????????????????????? | | ?????????????????????????????????????????????????? | | ?????????????????????????????????????????????????? | | ?????????????????????????????????????????????????? | | ?????????????????????????????????????????????????? | | ?????????????????????????????????????????????????? | | ?????????????????????????????????????????????????? | | ?????????????????????????????????????????????????? | | ?????????????????????????????????????????????????? | | ?????????????????????????????????????????????????? | | ?????????????????????????????????????????????????? | | ?????????????????????????????????????????????????? | | ?????????????????????????????????????????????????? | | ?????????????????????????????????????????????????? | | ???????????????#?????????????????????????????????? | | ???????????????# ????????????????????????????????? | | ???????????????# ???????????????????????????????? | | ???????????????# ??????????????????????????????? | | ???????????????# ?????????????????????????????? | | ??????????????## ########?????????????????????? | | ??????????????? #?????????????????????? | | ????????????????? #?????????????????????? | | ??????????????????? #?????????????????????? | | ????????????????????? #?????????????????????? | | ??????????????????????# #?????????????????????? | | ??????????????????????# @ #?????????????????????? | | ??????????????????????# #?????????????????????? | | ??????????????????????# #?????????????????????? | | ??????????????????????# #?????????????????????? | | ??????????????????????# #?????????????????????? | | ??????????????????????+ #?????????????????????? | | ??????????????????????# k#?????????????????????? | | ??????????????????????# #?????????????????????? | | ???????????????###+#### #?????????????????????? | | ???????????????# #?????????????????????? | | ???????????????# #?????????????????????? | | ???????????????# #???####??????????????? | | ???????????????# #?? #????????? | | ???????????????######## s#?? #????????? | | ??????????????????????# #? """ #????????? | | ??????????????????????# #? "Y" #????????? | | ??????????????????????# # #????????? | | ?????????##########???# # #????????? | | ?????????# ??# + #????????? | | ?????????# ??# # """"""" ??????????? | | ?????????# ?# # """""??????????????? | | ?????????# ?# #? """"???????????????? | | ?????????# # #? ???????????????? | | ?????????# # #?? ??????????????? | | ?????????+ + #??######?????????????? | +----------------------------------------------------+ Best States ------------- Heat Dissipation 58 Energy Generation 24 Energy Capacity 370 Matter Stores 300 Matter Capacity 300 Sight Range 22 Robot Scan Range 16 Terrain Scan Density 110 Power Amplification 30 Additional Mass Support 9 Armor Coverage 150 Resistance: KI 20 Resistance: TH 25 Evasion (%) 72 Melee Accuracy 6 Particle Charging 15 Offensive Hacking 24 Item Schematics ----------------- Flight Unit | -9/Materials | Scanalyzed Xenon Bombardment Thruster | -5/Factory | Scanalyzed Robot Schematics ------------------ None Fabricated ------------ Flight Unit | x2 | -7/Factory Xenon Bombardment Thruster | x2 | -3/Research Alien Tech Used ----------------- None Achievements -------------- None Challenges ------------ None Game ------ Seed SchematicTitaniumInjector Manual? 0 Play Time 01:54:38 Cumulative 37.0 hours Start 2022.05.06 @ 19:33:14 End 2022.05.06 @ 21:46:59 Sessions 1 Manual Loads 0 Difficulty Rogue Special Mode None Game No. 25 Rogue 9 Adventurer 16 Explorer 0 Win Type - Total 0 Types 0/0/0/0/0/0/0/0/0 Lore% 28 Gallery% 32 Achievement% 26 Wizard Run 0 Options --------- ASCII 1 Keyboard 1 Movement Numpad Keybinds 0 Fullscreen 1 Font 18/TerminusBold Map View 76x50 Tactical HUD 1 Map Filters NONE Filters NONE Steam 1 RUN: cb341b46-67db-4e05-8a49-4df8b4370c21